bitfinex-derivatives/quotes_ETHF0:USTF0_20251007
["timestamp","ask_amount","ask_price","bid_price","bid_amount"]
[1759848366809,3.2078,4627.7,4627.0,0.4061]
[1759848366810,0.38869,4627.3,4627.2,1.0448]
[1759848367009,0.38869,4627.3,4625.6,1.0448]
[1759848367010,0.38882,4625.8,4625.6,1.0448]
[1759848367315,0.39083553,4625.8,4625.7,1.0448]
[1759848367912,0.39083553,4625.8,4625.7,1.2638]
[1759848368313,0.00201553,4625.8,4625.7,1.2638]
[1759848374212,0.00201553,4625.8,4625.7,6.2638]
[1759848374415,0.38874,4626.7,4626.6,1.0448]
[1759848374614,1.0899,4626.3,4625.7,3.2078]
[1759848374917,0.38881,4625.8,4625.7,3.2078]
[1759848375117,0.38881,4625.8,4625.7,3.4268]
[1759848375319,0.39039836,4625.8,4625.7,3.4268]
[1759848375514,0.39039836,4625.8,4625.7,3.2078]
[1759848375710,0.39039836,4625.8,4625.7,3.4268]
[1759848376117,0.39039836,4625.8,4625.7,3.2078]
[1759848376315,0.39039836,4625.8,4625.7,3.4268]
[1759848376716,0.39039836,4625.8,4625.7,4.4716]
[1759848377915,0.00158836,4625.8,4625.7,4.4716]
[1759848378117,0.00158836,4625.8,4625.7,9.4716]
[1759848378414,0.38875,4626.6,4626.5,1.4509]
[1759848378720,0.38875,4626.6,4626.5,4.8777]
[1759848379220,0.39082244,4626.6,4626.5,4.8777]
[1759848380013,1.43622244,4626.6,4626.5,1.0448]
[1759848380218,0.38879,4626.1,4626.0,4.6369]
[1759848380413,0.38879,4626.1,4626.0,4.8559]
[1759848381222,0.38879,4626.1,4626.0,4.4498]
[1759848381622,0.38877,4626.3,4626.1,1.023]
[1759848382022,0.00207244,4626.6,4626.5,1.4297]
[1759848382222,0.39081244,4626.6,4626.5,4.8565]
[1759848382923,0.00207244,4626.6,4626.5,4.8565]
[1759848383325,3.2078,4628.0,4626.5,9.8565]
[1759848383521,3.2078,4628.0,4627.5,0.4067]
[1759848383726,0.38865,4627.7,4627.6,1.242]
[1759848384327,0.39095665,4627.7,4627.6,1.242]
[1759848385423,0.00230665,4627.7,4627.6,1.242]
[1759848387419,0.00230665,4627.7,4627.6,6.242]
[1759848387623,0.00230665,4627.7,4627.6,1.242]
[1759848389031,0.38862,4628.1,4628.0,1.4297]
[1759848389329,0.38861,4628.3,4628.0,3.8335]
[1759848389529,0.38861,4628.3,4628.1,1.023]
[1759848389731,0.38861,4628.3,4628.2,1.242]
[1759848390033,0.39056477,4628.3,4628.2,1.242]
[1759848391833,0.00195477,4628.3,4628.2,1.242]
[1759848392034,0.97137,4629.0,4628.6,1.023]
[1759848392233,0.38855,4628.9,4628.8,1.023]
[1759848392435,0.38855,4628.9,4628.8,1.242]
[1759848392631,3.2078,4629.1,4629.0,0.4279]
[1759848392835,3.59629,4629.6,4629.5,1.5037]
[1759848393030,3.59870437,4629.6,4629.5,1.72499876]
[1759848393435,3.21021437,4629.6,4629.5,1.72499876]
[1759848393735,0.00241437,4629.6,4629.5,4.93279876]
[1759848394137,0.00241437,4629.6,4629.5,1.72499876]
[1759848394735,0.00241437,4629.6,4629.5,1.50599876]
[1759848395036,0.00241437,4629.6,4629.5,1.72499876]
[1759848395938,9.31631437,4629.6,4629.5,0.00229876]
[1759848396233,9.31631437,4629.6,4629.5,8.76e-06]
[1759848397135,9.31631437,4629.6,4628.0,0.4067]
[1759848397136,0.38879,4626.1,4626.0,1.0758]
[1759848397434,0.38883,4625.6,4625.5,1.0758]
[1759848397936,0.38884,4625.4,4625.3,4.2836]
[1759848398136,0.39121177,4625.4,4625.3,4.5047921]
[1759848398432,0.00237177,4625.4,4625.3,4.5047921]
[1759848398838,0.00237177,4625.4,4625.3,4.2857921]
[1759848399040,0.00237177,4625.4,4625.3,4.5047921]
[1759848400838,0.38878,4626.2,4626.1,1.0769]
[1759848401135,0.38878,4626.3,4626.2,1.0769]
[1759848401438,1.0094,4626.9,4626.2,1.0769]
[1759848401737,1.0094,4626.9,4626.1,3.4268]
[1759848401738,0.38873,4626.8,4626.7,1.0769]
[1759848401934,0.38873,4626.8,4626.7,1.2959]
[1759848403333,0.38873,4626.8,4626.7,0.219]
[1759848403334,1.39813,4626.8,4626.7,0.219]
[1759848404039,1.0094,4626.8,4626.7,1.2959]
[1759848404240,0.0019906,4626.9,4626.8,1.0769]
[1759848404241,0.3907206,4626.9,4626.8,1.0769]
[1759848404635,0.3907206,4626.9,4626.5,0.4285]
[1759848404833,0.3907206,4626.9,4623.9,4.41716948]
[1759848404834,1.82406,4624.0,4623.9,4.6275997]
[1759848405039,0.38904,4623.1,4622.8,1.93214174]
[1759848405335,0.38904,4623.1,4622.0,0.4285]
[1759848405336,5.38904,4623.1,4622.0,0.4285]
[1759848405537,0.38912,4622.1,4622.0,0.4285]
[1759848405738,0.39158094,4622.1,4622.0,0.4310428]
[1759848406539,0.00246094,4622.1,4622.0,0.4310428]
[1759848406738,0.00246094,4622.1,4622.0,1.5079428]
[1759848407441,0.00246094,4622.1,4622.0,1.7269428]
[1759848408034,0.00246094,4622.1,4622.0,1.5079428]
[1759848410144,0.00246094,4622.1,4622.0,1.7269428]
[1759848413836,0.38902,4623.3,4623.1,1.0769]
[1759848414740,0.39103279,4623.3,4623.1,1.0769]
[1759848414946,0.00201279,4623.3,4623.1,1.46593]
[1759848415144,3.2078,4624.1,4624.0,0.4285]
[1759848415344,3.59675,4624.1,4624.0,1.7244]
[1759848416250,3.59844398,4624.1,4624.0,1.7244]
[1759848418747,1.0094,4626.0,4624.5,0.4285]
[1759848418950,3.2078,4625.2,4624.6,1.0769]
[1759848419140,0.38895,4624.2,4624.0,3.8553]
[1759848419344,0.38895,4624.2,4624.1,1.0769]
[1759848419749,0.3915156,4624.2,4624.1,1.0769]
[1759848419951,0.3915156,4624.2,4624.1,1.2959]
[1759848420340,0.0025656,4624.2,4624.1,1.2959]
[1759848420544,0.38887,4625.1,4625.0,0.4285]
[1759848420744,0.38887,4625.1,4625.0,1.7244]
[1759848421047,0.38887,4625.1,4625.0,1.0769]
[1759848421242,1.0094,4625.6,4625.0,1.2959]
[1759848421448,0.38887,4625.2,4625.1,1.0769]
[1759848421846,0.38887,4625.2,4625.1,1.2959]
[1759848422450,0.38885,4625.3,4625.1,0.219]
[1759848422651,0.00210789,4625.6,4625.5,1.4972]
[1759848422850,0.00210789,4625.6,4625.5,1.71783054]
[1759848423459,0.00210789,4625.6,4625.5,6.71783054]
[1759848423652,3.2078,4627.0,4626.1,1.0486]
[1759848423950,0.38874,4626.6,4626.5,1.4972]
[1759848424151,0.53205738,4626.6,4626.5,1.7162]
[1759848424552,0.53432994,4626.6,4626.5,1.7162]
[1759848424849,0.06385876,4626.6,4626.5,2.27276275]
[1759848425053,0.00227256,4626.6,4626.5,2.27276275]
[1759848425546,0.38869,4627.3,4626.5,0.83541275]
[1759848425751,0.38867,4627.5,4627.3,1.0486]
[1759848426053,0.38866,4627.6,4627.5,0.4486]
[1759848426246,0.38865,4627.8,4627.6,1.0486]
[1759848426450,0.38861,4628.2,4628.1,1.0486]
[1759848426752,0.39059219,4628.2,4628.1,1.2676]
[1759848426951,0.00198219,4628.2,4628.1,1.2676]
[1759848427852,0.00198219,4628.2,4628.1,6.2676]
[1759848428054,0.00198219,4628.2,4628.1,1.0486]
[1759848428253,0.00198219,4628.2,4628.1,1.2676]
[1759848428549,0.00198219,4628.2,4627.4,0.38867]
[1759848428550,0.97244,4623.9,4623.3,1.53222086]
[1759848428741,0.97244,4623.9,4623.0,3.6564]
[1759848428742,0.38903,4623.2,4623.0,3.6564]
[1759848428946,0.38903,4623.2,4623.1,0.219]
[1759848429149,0.38903,4623.2,4623.1,0.03838737]
[1759848429546,0.39183966,4623.2,4623.1,0.04041949]
[1759848430349,0.38908,4622.6,4622.5,4.705]
[1759848430544,0.38907,4622.7,4622.6,1.0486]
[1759848431348,0.38907,4622.7,4622.6,1.26999336]
[1759848432055,0.38904,4623.1,4622.7,1.0486]
[1759848432254,0.38906,4622.9,4622.8,1.2676]
[1759848432448,0.38906,4622.9,4622.8,1.0486]
[1759848432649,0.38906,4622.9,4622.8,1.2676]
[1759848433653,0.38906,4622.9,4622.8,1.0486]
[1759848433854,0.38906,4622.9,4622.8,1.2676]
[1759848434353,0.38906,4622.9,4622.8,1.0486]
[1759848434561,0.38906,4622.9,4622.8,1.2676]
[1759848434858,3.21060966,4623.2,4622.8,0.219]
[1759848435058,3.21060966,4623.2,4622.8,1.2676]
[1759848435255,0.38905,4622.9,4622.8,1.2676]
[1759848436256,0.38905,4622.9,4622.8,1.0486]
[1759848436552,0.38905,4622.9,4622.6,0.00239336]
[1759848436553,0.38906,4622.8,4622.6,3.36e-06]
[1759848436756,3.2078,4622.7,4622.6,3.36e-06]
[1759848437454,3.7592,4622.7,4622.6,3.36e-06]
[1759848438657,3.2078,4622.7,4622.6,3.36e-06]
[1759848439961,3.7592,4622.7,4622.6,3.36e-06]
[1759848440655,3.2078,4622.7,4622.6,3.36e-06]
[1759848442352,0.38906,4622.8,4622.6,1.04860336]
[1759848442557,0.38906,4622.8,4622.7,1.2676]
[1759848443356,3.21060966,4623.2,4622.7,1.2676]
[1759848443563,0.39183966,4623.2,4623.1,1.0486]
[1759848443755,0.39183966,4623.2,4623.1,1.2676]
[1759848444569,0.00280966,4623.2,4623.1,1.2676]
[1759848444761,0.39183966,4623.2,4623.1,1.2676]
[1759848446460,0.00280966,4623.2,4623.1,6.2676]
[1759848447568,0.38898,4623.8,4623.7,1.43758]
[1759848447770,3.59674,4624.2,4624.1,1.0486]
[1759848447967,0.38894,4624.2,4624.1,1.2676]
[1759848448465,0.3905618,4624.2,4624.1,1.2676]
[1759848448866,0.0016218,4624.2,4624.1,1.2676]
[1759848449071,0.0016218,4624.2,4624.1,1.0486]
[1759848449364,0.0016218,4624.2,4623.5,0.4486]
[1759848449365,0.38899,4623.7,4623.5,0.4486]
[1759848449565,0.38899,4623.7,4623.6,1.0486]
[1759848449765,0.38899,4623.7,4623.6,1.2676]
[1759848450772,0.38899,4623.7,4623.6,1.0486]
[1759848450972,0.38899,4623.7,4623.6,1.2676]
[1759848451669,0.38899,4623.7,4623.6,1.0486]
[1759848451866,0.38899,4623.7,4623.6,1.2676]
[1759848452668,0.38899,4623.7,4623.6,1.0486]
[1759848452863,3.59679,4623.7,4623.6,1.2676]
[1759848453072,3.59679,4623.7,4623.6,1.0486]
[1759848453269,0.38907,4622.7,4622.6,3.36e-06]
[1759848453575,0.38907,4622.7,4622.6,0.21900336]
[1759848453775,0.38907,4622.7,4622.6,1.30490336]
[1759848454074,0.38906,4622.8,4622.7,1.0859]
[1759848454677,0.38906,4622.8,4622.7,0.219]
[1759848454876,0.38906,4622.8,4622.7,1.0859]
[1759848455071,0.38906,4622.8,4622.7,1.3049]
[1759848455674,0.38906,4622.8,4622.7,1.0859]
[1759848455876,0.38906,4622.8,4622.7,1.3049]
[1759848457886,0.38906,4622.8,4622.7,1.0859]
[1759848458074,0.38906,4622.8,4622.7,1.3049]
[1759848458275,0.38906,4622.8,4622.7,1.0859]
[1759848458677,0.38906,4622.8,4622.7,1.3049]
[1759848459378,0.38904,4623.0,4622.8,1.0355]
[1759848459578,0.38903,4623.1,4623.0,0.4288]
[1759848459778,3.2078,4623.3,4623.1,0.38903]
[1759848459985,0.38899,4623.6,4623.5,1.4643]
[1759848464590,0.38895,4624.1,4624.0,0.4288]
[1759848464888,0.5519,4624.7,4624.5,0.4288]
[1759848464889,0.3889,4624.7,4624.5,0.4288]
[1759848465089,0.3889,4624.7,4624.6,1.2545]
[1759848465593,0.3889,4624.7,4624.6,1.0355]
[1759848465787,0.00179463,4624.7,4624.6,1.42761462]
[1759848465987,0.00179463,4624.7,4624.6,9.63541462]
[1759848466191,0.38886,4625.2,4625.1,1.0355]
[1759848466385,0.38886,4625.2,4625.1,1.2545]
[1759848466893,0.38882,4625.7,4625.5,0.4288]
[1759848467086,0.39088235,4625.7,4625.6,1.0355]
[1759848467283,0.39088235,4625.7,4625.6,1.2545]
[1759848468185,0.39088235,4625.7,4625.6,1.0355]
[1759848468491,0.39088235,4625.7,4625.6,1.2545]
[1759848468691,0.39088235,4625.7,4625.6,1.0355]
[1759848468997,0.39088235,4625.7,4624.6,3.38091462]
[1759848468998,0.97219,4625.1,4623.6,3.2078]
[1759848469293,4.73399,4623.7,4623.1,1.0355]
[1759848469492,0.38903,4623.2,4623.1,1.0355]
[1759848469692,0.38904,4623.0,4622.9,1.2545]
[1759848470195,3.2078,4623.2,4623.0,0.4288]
[1759848470397,3.2078,4623.2,4623.1,1.0355]
[1759848470893,0.38902,4623.3,4623.1,1.2555]
[1759848471096,0.38899,4623.6,4623.5,0.4288]
[1759848471391,3.2078,4624.0,4623.5,0.4288]
[1759848471596,3.2078,4624.0,4623.7,1.0355]
[1759848471894,0.38897,4623.9,4623.7,1.0355]
[1759848472388,0.38895,4624.2,4624.1,1.0355]
[1759848472590,0.38895,4624.1,4624.0,1.4643]
[1759848472792,0.38895,4624.1,4624.0,1.6843]
[1759848472992,0.9722,4625.0,4624.1,1.0355]
[1759848473293,0.3889,4624.7,4624.6,1.0355]
[1759848473690,3.59667,4625.1,4625.0,1.4643]
[1759848473891,3.59667,4625.1,4625.0,1.6843]
[1759848473892,0.38887,4625.1,4625.0,1.6843]
[1759848474295,0.38887,4625.1,4625.0,1.4643]
[1759848474686,0.38887,4625.1,4625.0,1.6843]
[1759848474895,0.38887,4625.1,4625.0,1.4643]
[1759848475090,0.38887,4625.1,4625.0,1.6843]
[1759848475596,0.38887,4625.1,4625.0,4.8921]
[1759848477496,3.59662,4625.6,4625.5,1.4643]
[1759848477693,0.38886,4625.2,4625.1,1.0355]
[1759848477897,0.38886,4625.2,4625.1,1.2555]
[1759848478698,0.38886,4625.2,4625.1,1.0355]
[1759848479095,5.38886,4625.2,4625.1,1.2555]
[1759848479396,0.38886,4625.2,4625.1,1.2555]
[1759848479590,0.39088235,4625.7,4625.5,0.4288]
[1759848479794,0.00206235,4625.7,4625.6,1.0355]
[1759848480000,0.00206235,4625.7,4625.6,1.2555]
[1759848481092,0.00206235,4625.7,4625.6,1.0355]
[1759848481298,0.00206235,4625.7,4625.6,1.2555]
[1759848481599,0.00206235,4625.7,4625.0,0.4288]
[1759848481600,0.97209,4625.5,4625.0,0.4288]
[1759848481900,0.38886,4625.2,4625.1,1.2555]
[1759848484096,0.00206235,4625.7,4625.6,1.0949]
[1759848484299,0.00206235,4625.7,4625.6,1.3149]
[1759848485092,0.00206235,4625.7,4625.6,1.48751372]
[1759848486391,3.2078,4626.4,4626.1,1.0949]
[1759848486592,3.2078,4626.9,4626.6,1.0949]
[1759848486798,3.2078,4626.9,4625.6,0.17261372]
[1759848486799,0.1504,4625.5,4623.5,0.4342]
[1759848487099,0.38899,4623.6,4623.5,0.5142]
[1759848487301,0.38895,4624.1,4624.0,0.4342]
[1759848487500,0.39115016,4624.1,4624.0,1.7491]
[1759848489301,0.39115016,4624.1,4624.0,1.5291]
[1759848489506,0.39115016,4624.1,4624.0,1.7491]
[1759848490101,0.39115016,4624.1,4624.0,1.5291]
[1759848490409,0.39115016,4624.1,4624.0,1.7491]
[1759848492212,0.00220016,4624.1,4624.0,1.7491]
[1759848494307,0.00220016,4624.1,4624.0,1.5291]
[1759848494506,0.00220016,4624.1,4624.0,1.7491]
[1759848497011,0.00220016,4624.1,4624.0,1.5291]
[1759848497213,0.00220016,4624.1,4624.0,1.7491]
[1759848499713,0.00220016,4624.1,4624.0,1.5291]
[1759848500014,0.00220016,4624.1,4624.0,1.7491]
[1759848500605,0.97226,4624.7,4624.5,0.4342]
[1759848500808,0.38888,4624.9,4624.7,1.0949]
[1759848501710,0.39088203,4624.9,4624.7,1.0949]
[1759848502616,0.39088203,4624.9,4624.8,1.0949]
[1759848503014,0.39088203,4624.9,4624.8,1.3149]
[1759848504113,0.39088203,4624.9,4624.8,1.0949]
[1759848504319,0.39088203,4624.9,4624.8,1.3149]
[1759848506717,0.39088203,4624.9,4624.8,1.0949]
[1759848507114,0.39088203,4624.9,4624.8,1.3149]
[1759848507715,0.39088203,4624.9,4624.8,1.0949]
[1759848507922,0.39088203,4624.9,4624.8,1.3149]
[1759848510115,0.39088203,4624.9,4624.8,1.70379]
[1759848510421,0.00200203,4624.9,4624.8,1.70379]
[1759848510721,11.66171,4626.9,4624.8,1.70379]
[1759848510722,0.97188,4626.5,4625.7,1.0949]
[1759848510918,0.38882,4625.6,4625.5,0.82303]
[1759848511118,0.38882,4625.6,4625.5,42.93793]
[1759848511324,0.38882,4625.7,4625.5,41.4542]
[1759848511525,0.38882,4625.7,4625.5,40.8]
[1759848511725,0.38882,4625.7,4625.6,1.3149]
[1759848511726,1.35291571,4625.7,4625.6,1.3149]
[1759848511921,0.90506784,4625.7,4625.6,1.3149]
[1759848514231,0.00159571,4625.7,4625.6,1.3149]
[1759848514531,0.00159571,4625.7,4625.6,1.0949]
[1759848514732,0.00159571,4625.7,4625.6,1.3149]
[1759848514932,0.00159571,4625.7,4625.6,42.1149]
[1759848516740,0.38875,4626.5,4626.4,1.43925]
[1759848517034,0.3887,4627.1,4627.0,1.4707]
[1759848517237,0.3887,4627.1,4626.5,0.4202]
[1759848517238,0.38874,4626.7,4626.5,0.4202]
[1759848517536,0.38874,4626.7,4626.6,1.2705]
[1759848517733,3.59922287,4626.7,4626.6,1.2723481]
[1759848517934,3.72511495,4626.7,4626.6,1.2723481]
[1759848518134,3.72511495,4626.7,4626.6,1.44303302]
[1759848518537,0.51731495,4626.7,4626.6,1.44303302]
[1759848518934,0.51731495,4626.7,4626.6,6.44303302]
[1759848519127,3.59645,4627.7,4627.6,1.40466]
[1759848519327,3.2078,4627.7,4627.6,1.236]
[1759848520136,3.20956196,4627.7,4627.6,1.236]
[1759848520326,3.20956196,4627.7,4627.6,1.016]
[1759848520532,3.20956196,4627.7,4627.6,1.236]
[1759848521041,3.20956196,4627.7,4627.6,1.016]
[1759848521431,3.20956196,4627.7,4627.6,1.236]
[1759848522933,3.20956196,4627.7,4627.6,1.016]
[1759848523139,3.20956196,4627.7,4627.6,1.236]
[1759848523350,3.20956196,4627.7,4626.9,3.2078]
[1759848523351,0.38894,4624.2,4623.7,3.4920451]
[1759848523643,3.2078,4624.1,4623.6,0.22]
[1759848523844,0.38898,4623.9,4623.6,0.60899]
[1759848524044,4.2606,4624.1,4623.5,0.57820533]
[1759848524240,3.2078,4623.6,4623.5,0.00232921]
[1759848524446,4.64959,4623.6,4623.5,0.00232921]
[1759848524641,4.64959,4623.6,4623.5,0.15232921]
[1759848525147,4.64959,4623.6,4623.5,0.22232921]
[1759848528146,0.38908,4622.6,4622.4,41.816]
[1759848528346,0.38908,4622.6,4622.5,1.236]
[1759848529244,0.38908,4622.6,4622.5,1.23833476]
[1759848529847,3.2078,4622.7,4622.6,1.016]
[1759848531143,0.38903,4623.2,4622.8,0.38905]
[1759848531355,3.59682,4623.3,4623.1,1.016]
[1759848531841,3.59682,4623.3,4623.0,0.79534]
[1759848532244,0.38903,4623.2,4623.0,0.4063]
[1759848532444,0.38907,4622.7,4622.6,1.016]
[1759848532645,3.59687,4622.7,4622.6,1.236]
[1759848533855,3.2078,4622.7,4622.6,1.236]
[1759848535350,3.2078,4623.3,4623.2,1.016]
[1759848535546,4.2606,4623.3,4623.2,1.235]
[1759848536655,3.2078,4623.3,4623.2,1.235]
[1759848539052,3.2078,4623.3,4623.2,1.016]
[1759848539258,3.2078,4623.3,4623.2,1.235]
[1759848539659,3.2078,4623.9,4623.8,1.016]
[1759848539955,3.2078,4623.9,4623.8,1.235]
[1759848540554,3.2078,4623.9,4623.8,1.016]
[1759848540746,3.2078,4623.9,4623.8,42.035]
[1759848541658,3.2078,4623.9,4623.8,75.771]
[1759848541962,0.00197557,4624.1,4624.0,1.4223]
[1759848543257,0.00197557,4624.1,4624.0,1.016]
[1759848543258,1.06177557,4624.1,4624.0,1.016]
[1759848543554,1.06177557,4624.1,4622.9,3.2078]
[1759848543555,1.44879,4623.7,4623.6,1.47259]
[1759848543749,4.65659,4623.7,4623.6,1.69159]
[1759848544155,3.2078,4623.7,4623.6,1.69159]
[1759848544764,3.2078,4623.7,4623.6,1.0836]
[1759848544958,3.2078,4623.7,4623.2,1.0836]
[1759848544959,1.44882,4623.3,4623.2,1.0836]
[1759848545260,3.2078,4623.7,4623.4,0.38901]
[1759848545563,3.2078,4623.7,4623.6,1.0836]
[1759848546261,4.2676,4623.7,4623.6,1.0836]
[1759848547063,3.2078,4623.7,4623.6,1.0836]
[1759848548655,3.2078,4623.7,4623.6,1.7742]
[1759848548862,3.2078,4623.7,4623.6,2.4932]
[1759848549065,3.2078,4623.7,4623.6,43.2932]
[1759848549560,0.39093557,4624.1,4623.6,42.6026]
[1759848549765,0.39093557,4624.1,4624.0,2.9079]
[1759848549965,0.39093557,4624.1,4624.0,3.1269]
[1759848550664,0.00197557,4624.1,4624.0,3.51586]
[1759848551565,2.47057557,4624.1,4624.0,0.6906]
[1759848551767,1.12098,4623.7,4623.6,2.4932]
[1759848551960,4.32878,4623.7,4623.6,2.7122]
[1759848552359,3.9398,4623.7,4623.6,2.7122]
[1759848552864,4.9996,4623.7,4623.6,2.7122]
[1759848553466,3.9398,4623.7,4623.6,2.4932]
[1759848553663,3.9398,4623.7,4623.6,2.7122]
[1759848553868,5.6764,4623.7,4623.6,0.6906]
[1759848554061,5.6764,4623.7,4623.6,0.9096]
[1759848554365,5.6764,4623.7,4623.6,2.7122]
[1759848554972,5.6764,4623.7,4623.6,3.10119]
[1759848554973,3.2078,4623.7,4623.6,3.10119]
[1759848555269,3.2078,4623.7,4623.6,2.88219]
[1759848555568,3.2078,4623.7,4623.6,3.10119]
[1759848555965,0.6768,4623.1,4622.6,1.7742]
[1759848556162,0.732,4622.6,4622.5,1.77653476]
[1759848556360,0.732,4622.6,4622.5,2.71453476]
[1759848556561,0.732,4622.6,4622.5,2.49553476]
[1759848556762,1.7918,4622.6,4622.5,2.49553476]
[1759848556964,2.4686,4622.6,4622.5,2.49553476]
[1759848557165,0.732,4622.6,4622.5,2.71453476]
[1759848557467,0.38908,4622.7,4622.5,2.02001476]
[1759848557670,0.38908,4622.7,4622.6,2.4932]
[1759848558368,2.18088,4622.7,4622.6,2.4932]
[1759848558563,0.38908,4622.7,4622.6,2.4932]
[1759848559267,2.18088,4622.7,4622.6,2.7122]
[1759848560365,0.732,4622.6,4622.5,2.49553476]
[1759848560665,0.732,4622.6,4622.5,2.71453476]
[1759848560962,1.7918,4622.6,4622.5,2.71453476]
[1759848561369,0.732,4622.6,4622.5,3.10362476]
[1759848561568,0.38908,4622.7,4622.6,1.0836]
[1759848561765,1.12108,4622.7,4622.6,2.4932]
[1759848561966,0.732,4622.7,4622.6,2.4932]
[1759848562264,1.12106,4622.8,4622.7,2.4932]
[1759848562462,2.85766,4622.8,4622.7,1.6286]
[1759848562760,1.79788,4622.6,4622.5,0.00233476]
[1759848562961,1.79788,4622.6,4621.8,1.7742]
[1759848562962,2.85774,4621.9,4621.8,1.7742]
[1759848563170,6.06554,4621.9,4621.8,1.9932]
[1759848563564,6.06554,4621.9,4621.8,2.7122]
[1759848563973,6.06554,4621.9,4621.8,2.71391818]
[1759848564266,3.2078,4621.9,4621.8,3.10305818]
[1759848564581,5.6764,4622.5,4622.4,1.0836]
[1759848564777,5.6764,4622.5,4622.3,0.6906]
[1759848564778,2.85769,4622.4,4622.3,0.6906]
[1759848565071,2.85769,4622.4,4622.3,0.9096]
[1759848565462,1.12112,4622.1,4622.0,1.7742]
[1759848565762,2.85772,4622.1,4622.0,0.6906]
[1759848566270,2.85774,4621.9,4621.8,0.69231818]
[1759848566567,6.06554,4621.9,4621.8,0.22071818]
[1759848566966,6.06554,4621.9,4621.8,0.00171818]
[1759848567171,2.181,4621.1,4621.0,2.4932]
[1759848567366,5.3888,4621.1,4621.0,2.7122]
[1759848567567,6.0656,4621.1,4621.0,2.4932]
[1759848567871,2.18104,4620.7,4620.6,2.4932]
[1759848568065,1.12355699,4620.7,4620.6,2.88647949]
[1759848568265,1.12355699,4620.7,4620.6,2.71422731]
[1759848568773,2.18335699,4620.7,4620.6,2.49522731]
[1759848568973,0.73431699,4620.7,4620.6,2.71422731]
[1759848569170,0.00231699,4620.7,4620.6,3.10347731]
[1759848569474,0.00231699,4620.7,4620.6,2.71422731]
[1759848570873,3.2078,4621.1,4621.0,2.9079]
[1759848571072,3.2078,4621.1,4621.0,3.1269]
[1759848571275,4.9996,4621.1,4621.0,2.7122]
[1759848571668,4.9996,4621.1,4620.2,2.91465564]
[1759848571669,0.4416,4620.5,4618.5,3.88291128]
[1759848571864,0.4416,4620.5,4617.6,5.04778467]
[1759848571865,0.729,4618.6,4617.6,5.04778467]
[1759848572176,0.729,4618.0,4617.9,0.2406551]
[1759848572565,0.729,4618.0,4617.9,0.0216551]
[1759848572766,5.73131135,4618.0,4617.9,0.02371455]
[1759848574266,5.95211135,4618.0,4617.3,0.219]
[1759848574470,0.38954,4617.2,4617.0,1.3601]
[1759848574672,0.38954,4617.2,4617.1,0.219]
[1759848574872,0.38954,4617.2,4617.1,1.2489]
[1759848575067,0.38954,4617.2,4617.1,1.0299]
[1759848575272,6.08164,4617.2,4617.1,0.00248045]
[1759848575675,1.08164,4617.2,4617.1,0.00248045]
[1759848576077,0.38961,4616.3,4615.6,0.38967]
[1759848576275,0.38962,4616.2,4616.1,1.0299]
[1759848576676,0.38962,4616.2,4616.1,1.2489]
[1759848576970,0.38962,4616.2,4616.1,0.219]
[1759848577276,0.6921,4616.2,4616.1,0.00219603]
[1759848577779,4.28951,4616.3,4616.1,0.00219603]
[1759848577967,4.28951,4616.3,4616.1,1.03209603]
[1759848578169,0.6921,4616.2,4616.1,0.00219603]
[1759848578378,3.52575388,4616.2,4616.1,1e-08]
[1759848580384,8.52575388,4616.2,4616.1,1e-08]
[1759848582578,3.52575388,4616.2,4616.1,1e-08]
[1759848583074,0.6921,4616.2,4616.1,1e-08]
[1759848583673,3.2078,4616.3,4616.1,1e-08]
[1759848583875,3.59741,4616.3,4616.1,1e-08]
[1759848584079,3.59741,4616.3,4616.1,1.07110001]
[1759848584276,3.59741,4616.3,4616.1,1e-08]
[1759848584482,3.62034719,4616.2,4616.1,1e-08]
[1759848584682,3.59741,4616.3,4616.1,1e-08]
[1759848585282,3.59741,4616.3,4616.1,1.07110001]
[1759848585478,3.59741,4616.3,4616.1,1e-08]
[1759848585686,3.59741,4616.3,4616.1,1.07110001]
[1759848586185,3.59741,4616.3,4616.1,1e-08]
[1759848586684,1.34303143,4616.2,4616.1,1e-08]
[1759848587173,4.19773128,4616.2,4616.1,1e-08]
[1759848587372,3.44313128,4616.2,4616.1,1e-08]
[1759848587782,8.44313128,4616.2,4616.1,1e-08]
[1759848589084,0.38975,4614.6,4614.5,1.4682]
[1759848589387,0.38979,4614.2,4614.1,1.0711]
[1759848589783,0.38979,4614.2,4614.1,1.2911]
[1759848590086,0.39169314,4614.2,4614.1,1.07303789]
[1759848590687,0.00190314,4614.2,4614.1,6.07303789]
[1759848590983,0.00190314,4614.2,4614.1,6.29303789]
[1759848591176,3.2078,4614.6,4614.5,0.4479]
[1759848591380,0.7546,4615.7,4614.5,0.4479]
[1759848591381,3.2078,4615.1,4615.0,0.4479]
[1759848591587,3.2078,4615.1,4615.0,1.739]
[1759848592188,3.21055592,4615.1,4615.0,1.739]
[1759848592584,3.21055592,4615.1,4615.0,1.519]
[1759848592784,3.21055592,4615.1,4615.0,1.739]
[1759848593592,0.00275592,4615.1,4615.0,1.739]
[1759848593893,0.00275592,4615.1,4615.0,1.519]
[1759848594191,0.00275592,4615.1,4615.0,1.739]
[1759848594788,0.00275592,4615.1,4615.0,6.739]
[1759848595383,0.00275592,4615.1,4615.0,6.519]
[1759848595584,0.00275592,4615.1,4615.0,6.738]
[1759848595783,0.00275592,4615.1,4615.0,9.9458]
[1759848595990,3.59742,4616.2,4616.1,1.0711]
[1759848596191,0.38965,4615.9,4615.5,0.4479]
[1759848596383,0.38965,4615.8,4615.6,1.2911]
[1759848596586,3.9651,4616.2,4615.8,1.0711]
[1759848596783,3.2078,4616.2,4615.6,0.22]
[1759848596989,0.39173375,4616.2,4616.1,1.0711]